Cogmind - Beta 10.2 @@@ ROGUE MODE // 2021.05.30 @ 14:59:52 Player: Siegien Result: Destroyed by S-10 Pest with Light Assault Rifle Performance ------------- Evolutions (1) 500 Regions Visited (2) 400 Robots Destroyed (26) 130 Value Destroyed (636) 636 Prototype IDs (0) 0 Alien Tech Used (0) 0 Bonus (0) 0 TOTAL SCORE: 1666 Bonus ------- None Cogmind --------- Core Integrity 0/400 Matter 285/300 Energy 99/100 System Corruption 1% Temperature Cool (6) Movement Core (50) Location -9/Materials Parts ------- > --- POWER (2) -------- (None) > --- PROPULSION (2) --- (None) > --- UTILITY (2) ------ (None) > --- WEAPON (3) ------- (None) > --- INVENTORY (4) ---- Medium Matter Pod (98) Peak State ------------ > --- POWER ------------ Light Ion Engine > --- PROPULSION ------- Aluminum Leg Aluminum Leg > --- UTILITY ---------- Small Storage Unit Large Battery > --- WEAPON ----------- Light Cannon Mining Laser Mining Laser > --- INVENTORY -------- Power Shielding [Rating: 8] Favorites ----------- Power Light Ion Engine Engine Light Ion Engine Propulsion Aluminum Leg Treads Light Treads Leg Aluminum Leg Hover Unit Hover Unit Utility Small Storage Unit Storage Small Storage Unit Weapon Mining Laser Energy Gun Small Laser Ballistic Gun Light Assault Rifle Ballistic Cannon Light Cannon Launcher Grenade Launcher Special Weapon Mining Laser Build | -11 -10 -9 ------- Run | Scr Mat Mat Slots Evolved 2 | . . 2 Power 1 | . . 1 Propulsion . | . . . Utility . | . . . Weapon 1 | . . 1 Parts Attached 25 | 7 6 12 Power 2 | 1 . 1 Engine 2 | 1 . 1 Core . | . . . Reactor . | . . . Propulsion 9 | 3 2 4 Treads 1 | 1 . . Leg 6 | 2 2 2 Wheel . | . . . Hover 2 | . . 2 Flight . | . . . Utility 3 | 1 1 1 Device . | . . . Storage 3 | 1 1 1 Processor . | . . . Hackware . | . . . Protection . | . . . Artifact . | . . . Weapon 11 | 2 3 6 Energy Gun 4 | 1 1 2 Energy Cannon . | . . . Ballistic Gun 1 | 1 . . Ballistic Cannon 1 | . . 1 Launcher 2 | . 2 . Special Weapon 3 | . . 3 Impact Weapon . | . . . Slashing Weapon . | . . . Piercing Weapon . | . . . Special Melee Weapon . | . . . Unidentified Prototypes . | . . . Parts Lost 20 | . 5 15 Power 2 | . 1 1 Propulsion 8 | . 2 6 Utility 1 | . . 1 Weapon 9 | . 2 7 Highest Loss Streak 7 | . 5 7 Average Slot Usage (%) 65 | . 63 66 Engine 4 | . 3 4 Leg 21 | . 25 17 Hover 1 | . . 2 Storage 17 | . 15 20 Energy Gun 4 | . 6 2 Ballistic Gun 1 | . 3 . Ballistic Cannon 3 | . . 6 Launcher 5 | . 8 2 Special Weapon 5 | . . 10 Naked Turns 9 | . . 9 Heaviest Build 15 | 10 11 15 Greatest Support 20 | 20 20 20 Greatest Overweight (x) 3 | . 2 3 Average Overweight (x) . | . . . Largest Inventory Capacity 6 | 6 6 6 Average Capacity 5 | 4 6 5 Most Carried 6 | 2 3 6 Average Carried 1 | . . 2 Final Capacity 6 | 6 6 4 Final Carried 3 | . 3 1 Class Distribution -------------------- 75% | Mutant 24% | Gunner Dominant Class ---------------- Mutant | -10/Materials Gunner | -9/Materials Resources | -11 -10 -9 ----------- Run | Scr Mat Mat Matter Collected 573 | 241 149 183 Remotely . | . . . Salvage Created 628 | . 348 280 Parts 54 | . 32 22 Haulers Intercepted . | . . . Recyclers Shooed 1 | 1 . . Parts Field Recycled . | . . . Retrieved Matter . | . . . Parts Self-Destructed . | . . . Prevented . | . . . Kills | -11 -10 -9 ------- Run | Scr Mat Mat Combat Hostiles Destroyed 20 | . 10 10 Guns 6 | . 6 . Cannons 8 | . . 8 AOE 6 | . 4 2 Classes Destroyed 7 | . 5 2 Worker 3 | . 1 2 Tunneler 1 | . 1 . Watcher 2 | . 2 . Swarmer 6 | . 3 3 Grunt 11 | . 7 4 Duelist 1 | . . 1 Sentry 2 | . . 2 Best Kill Streak 4 | . 3 4 Combat Bots Only 3 | . 3 3 Max Kills in Single Turn 2 | . 2 2 Gunslinging . | . . . Exploded 2 | . 2 2 Melee . | . . . Uniques/NPCs Destroyed . | . . . Combat | -11 -10 -9 -------- Run | Scr Mat Mat Damage Taken 1834 | . 605 1229 Core 558 | . 150 408 Absorbed by Shields . | . . . Core Remaining (%) 70 | 100 40 . Volleys Fired 66 | 1 26 39 Largest 2 | 2 2 2 Hottest 70 | 60 60 70 Shots Fired 87 | 2 41 44 Gun 44 | 2 33 9 Cannon 30 | . . 30 Launcher 13 | . 8 5 Special . | . . . Kinetic 49 | 1 18 30 Thermal 9 | . . 9 Explosive 13 | . 8 5 Electromagnetic 16 | 1 15 . Robot Hit Streak 14 | 2 14 10 Robot Miss Streak 4 | . 4 3 Penetration Max . | . . . Secondary Targets 2 | . 2 . Max Gunslinging Chain 1 | . 1 . Shots Hit Robots 63 | 2 29 32 Core Hits 47 | 1 23 23 Critical Hits 1 | . . 1 Critical Kills 1 | . . 1 Critical Parts Destroyed . | . . . Melee Attacks . | . . . Impact . | . . . Slashing . | . . . Piercing . | . . . Sneak Attacks . | . . . Combat Hostiles . | . . . Follow-up Attacks . | . . . Damage Inflicted 1363 | 20 573 770 Guns 319 | 20 250 49 Cannons 436 | . . 436 Explosions 575 | . 322 253 Melee . | . . . Ramming 33 | . 1 32 Kinetic 552 | 8 108 436 Thermal 49 | . . 49 Explosive 534 | . 281 253 Electromagnetic 195 | 12 183 . Impact . | . . . Slashing . | . . . Piercing . | . . . Highest Corruption 1 | . . 1 Average Corruption 1 | . . 1 Corruption Purged . | . . . Effects 3 | . . 3 Message Errors 2 | . . 2 Data Loss (minor) 1 | . . 1 Overload Shots . | . . . Overflow Damage 9 | . . 9 Projectiles . | . . . Explosions 9 | . . 9 Melee . | . . . Knockbacks 1 | . . 1 Impact . | . . . Kinetic 1 | . . 1 Secondary . | . . . Self-Inflicted Damage 99 | . 65 34 Shots 4 | . 3 1 Rammed 18 | . 1 17 Targets Rammed 20 | . 2 18 Kicked 2 | . 1 1 Crushed . | . . . Highest Temperature 202 | 20 202 12 Average Temperature 65 | 15 79 5 Received Heat Transfer 474 | . 258 216 Siege Activations . | . . . Robots Corrupted . | . . . Combat Hostiles . | . . . Parts Fried . | . . . Impact Corruptions . | . . . Robots Melted . | . . . Combat Hostiles . | . . . Parts Melted . | . . . Heat Transferred 112 | . . 112 Parts Sabotaged . | . . . Parts Stolen . | . . . Parts Stripped . | . . . Power Chain Reactions . | . . . Missiles Intercepted . | . . . Alert | -11 -10 -9 ------- Run | Scr Mat Mat Peak Influence 229 | . 229 173 Initial 33 | . . 33 Average 89 | . 116 83 Maximum Alert Level 1 | . 1 . Low Security (%) 87 | 100 70 100 Level 1 12 | . 29 . Level 2 . | . . . Level 3 . | . . . Level 4 . | . . . Level 5 . | . . . High Security . | . . . Max Security . | . . . Squads Dispatched 4 | . 2 2 Investigation 3 | . 1 2 Extermination . | . . . Reinforcement 1 | . 1 . Assault . | . . . Garrison . | . . . Intercept . | . . . Construction Impeded . | . . . Haulers Reinforced . | . . . Stealth | -11 -10 -9 --------- Run | Scr Mat Mat Distress Signals 2 | . 1 1 Communications Jammed . | . . . Distress Signals . | . . . Times Spotted 37 | . 15 22 Peak Tracking Total 7 | . 6 7 Tactical Retreats . | . . . Traps | -11 -10 -9 ------- Run | Scr Mat Mat Traps Triggered 1 | . 1 . Indirectly . | . . . Trap Hack Attempts . | . . . Triggered . | . . . Disarmed . | . . . Reprogrammed . | . . . Reused . | . . . Traps Extracted . | . . . Installed . | . . . Triggered 1 | . 1 . Machines | -11 -10 -9 ---------- Run | Scr Mat Mat Machines Disabled 1 | . 1 . Max in Single Turn 1 | . 1 . Machines Sabotaged . | . . . Garrisons Compromised . | . . . Overloaded Fab Kills . | . . . Fab Network Shutdowns . | . . . Hacking | -11 -10 -9 --------- Run | Scr Mat Mat Machines Accessed 7 | . 4 3 Terminals 3 | . 2 1 Fabricators . | . . . Repair Stations 1 | . . 1 Recycling Units 3 | . 2 1 Scanalyzers . | . . . Garrison Access . | . . . Total Hacks 25 | . 13 12 Successful 22 | . 11 11 Failed 3 | . 2 1 Catastrophic . | . . . Database Lockouts . | . . . Manual . | . . . Terminals 11 | . 8 3 Fabricators . | . . . Repair Stations 6 | . . 6 Recycling Units 8 | . 5 3 Scanalyzers . | . . . Garrison Access . | . . . Terminal Hacks 8 | . 6 2 Record 7 | . 5 2 Zone Layout 1 | . 1 . Fabricator Hacks . | . . . Repair Station Hacks 6 | . . 6 Scan Component 4 | . . 4 Repair 2 | . . 2 Recycling Unit Hacks 8 | . 5 3 Recycle Component 1 | . . 1 Process 4 | . 2 2 Report Inventory 1 | . 1 . Retrieve Matter 1 | . 1 . Retrieve Components 1 | . 1 . Scanalyzer . | . . . Garrison Access Hacks . | . . . Unauthorized Hacks . | . . . Terminals . | . . . Fabricators . | . . . Repair Stations . | . . . Recycling Units . | . . . Scanalyzers . | . . . Garrison Access . | . . . Data Cores Recovered . | . . . Used . | . . . Hacking Detections 5 | . 3 2 Full Trace Events 5 | . 3 2 Feedback Events . | . . . Feedback Blocked . | . . . Robot Schematics Acquired . | . . . Robots Built . | . . . Matter . | . . . Time . | . . . Total Robot Build Rating . | . . . Part Schematics Acquired . | . . . Parts Built . | . . . Matter . | . . . Time . | . . . Total Part Build Rating . | . . . Parts Repaired 2 | . . 2 Time 52 | . . 52 Parts Recycled 1 | . . 1 Recycled Matter 154 | . 83 71 Retrieved Matter 188 | . 188 . Retrieved Components . | . . . Parts Scanalyzed . | . . . Part Schematics Acquired . | . . . Parts Damaged . | . . . Bothacking | -11 -10 -9 ------------ Run | Scr Mat Mat Used RIF Installer . | . . . Robots Hacked . | . . . Non-combat . | . . . Combat . | . . . Robot Hacks Applied . | . . . Relay Couplers Released . | . . . Robots Rewired . | . . . Allies Hacked . | . . . Hacks Repelled . | . . . Allies | -11 -10 -9 -------- Run | Scr Mat Mat Total Allies . | . . . Largest Group . | . . . Highest-Rated Group . | . . . Highest-Rated Ally . | . . . Total Orders . | . . . Ally Attacks . | . . . Total Damage . | . . . Kills . | . . . Allies Corrupted . | . . . Allies Melted . | . . . Intel | -11 -10 -9 ------- Run | Scr Mat Mat Robot Analysis Total . | . . . Derelict Logs Recovered . | . . . Drone Launches . | . . . Drone Recoveries . | . . . Exploration | -11 -10 -9 ------------- Run | Scr Mat Mat Turns Passed 1238 | 114 531 593 Spaces Moved 888 | 83 376 429 Core 73 | 21 32 20 Treads 21 | 21 . . Legs 703 | 41 344 318 Wheels . | . . . Hover 91 | . . 91 Flight . | . . . Fastest Speed 50 | 50 100 50 Average Speed 113 | 112 120 106 Slowest Speed 200 | 160 150 200 Overloaded Moves . | . . . Propulsion Burnouts . | . . . Robots Hopped . | . . . Cave-ins Triggered . | . . . Exploration Rate (%) 20 | 5 37 20 Regions Visited 2 Branch Regions . Pre-discovered Areas . | . . . Known Exits Taken . | . . . Unknown Exits Taken 2 | 1 1 . Scrap Searched . | . . . Spaces Dug . | . . . Terrain Destroyed 98 | . 51 47 Melee . | . . . Projectile . | . . . AOE 98 | . 51 47 Terrain Rammed . | . . . Walls Destroyed . | . . . Machines Disabled . | . . . Actions | -11 -10 -9 --------- Run | Scr Mat Mat Total 1029 | 102 415 512 Wait 11 | 4 1 6 Move 886 | 82 375 429 Hop . | . . . Pick Up 17 | 7 5 5 Fast Attach 13 | . 4 9 Attach 12 | 7 2 3 Detach . | . . . Swap . | . . . Drop 4 | 1 . 3 Fire 66 | 1 26 39 Melee . | . . . Ram 6 | . . 6 Kick 14 | . 2 12 Crush . | . . . Escape Stasis . | . . . Rewire . | . . . Trap . | . . . Miscellaneous . | . . . Route ------- -11/Scrapyard -10/Materials -9/Materials History --------- Turn | Location | Event 4 | -11/Scrapyard | Discovered new exit (range 15) 115 | -11/Scrapyard | Entered Materials 274 | -10/Materials | Core integrity fell below 50% 296 | -10/Materials | Lost 5 parts (1p2n2w) 303 | -10/Materials | Build established: Mutant 532 | -10/Materials | Discovered new exit (range 12) 646 | -10/Materials | Entered another Materials area 646 | -9/Materials | Evolved 2 slots: Power x1, Weapon x1 837 | -9/Materials | Lost 5 parts (2n3w) 885 | -9/Materials | Core integrity fell below 50% 906 | -9/Materials | Lost 3 parts (2n1w) 1164 | -9/Materials | Repaired Sml. Storage Unit 1190 | -9/Materials | Repaired Lrg. Battery 1197 | -9/Materials | Build established: Gunner 1235 | -9/Materials | Core integrity fell below 20% 1239 | -9/Materials | Destroyed by S-10 Pest with Light Assault Rifle Last Messages --------------- Time: 26 ALERT: Suspicious activity at Repair Station M001. Dispatching Investigation squad. Acquired Sml. Storage Unit. Repair station completes Lrg. Battery repairs. Mining Laser destroyed. Y-45 Defender destroyed. G-34 Mercenary destroyed. Mining Laser destroyed. G-34 Mercenary knocked back. W-16 Scout sends out distress signal. Lgt. Cannon destroyed. Lgt. Ion Engine destroyed. R-06 Scavenger collects Lgt. Treads. Sml. Storage Unit destroyed. Aluminum Leg destroyed. R-06 Scavenger collects Aluminum Leg. Slammed into S-10 Pest. R-06 Scavenger collects Aluminum Leg. K-01 Serf collects debris. Map ----- +----------------------------------------------------+ | ?????????????????????????????????????????????????? | | ?????????????????????????????????????????????????? | | ?????????????????????????????????????????????????? | | ?????????????????????????????????????????????????? | | ?????????????????????????????????????????????????? | | ?????????????????????????????????????????????????? | | ?????????????????????????????????????????????????? | | ?????????????????????????????????????????????????? | | ?????????????????????????????????????????????????? | | ?????????????????????????????????????????????????? | | ?????????????????????????????????????????????????? | | ????????????????????????????? ???????????????????? | | ????????????????????????????? ""?????????????????? | | ???????????????????????????? """????????????????? | | ???????????????????????????? ????????????????? | | ??????? ??????????????????? ?????????????????? | | ??????? ??????????#???????? ?????????????????? | | ??????? ??????????# ??????? ?????????????????? | | #####?? ??????????# ???????#+#?????????????????? | | #?? ??????????# k??????# #?########????????? | | ### #?? ??????????# ??????# #?# ????????? | | # #?? ??????????# ???### ### """ ""????????? | | # #?? ?########## #### gs # """ """???????? | | # #?? *%r g # """ """ #?????? | | # ##? w ! ss + #?????? | | %+ #? @ s # #?????? | | # #?# #???????########### # ! #?????? | | # [#?# #?????############## ## #?????? | | !# =#?# #?????# """ # ############?????? | | ###[ ### ####### """ "R" # ######???????????? | | !== + """ "!" + ????? | | = =########### """ # #######??????????? | | ######???# # # #????????????????? | | #????????# ############## #????????????????? | | ##???????# """ #????????????# #????????????????? | | #???????# """ #????????????# #????????????????? | | ######### """ #????????????# #????????????????? | | # ! ## #????????????+ +????????????????? | | # "## """ #????????????# #????????????????? | | ## T## """ #????????????# #????????????????? | | ## "## """ #????????????# #????????????????? | | ## ## % ###??????????# #????????????????? | | ## ## %# # ####?????# #????????????????? | | +# % ## ####### #????????????????? | | =%* #????????????????? | | % #????????????????? | | # # ## ######## #????????????????? | | # ##??????# #????????????????? | | # #???????#####????????????????? | | # ######????????????????????????????? | +----------------------------------------------------+ Best States ------------- Heat Dissipation 28 Energy Generation 10 Energy Capacity 425 Matter Stores 300 Matter Capacity 300 Sight Range 16 Terrain Scan Density 10 Evasion (%) 53 Recoil Reduction 1 Item Schematics ----------------- None Robot Schematics ------------------ None Fabricated ------------ Nothing Alien Tech Used ----------------- None Achievements -------------- None Challenges ------------ None Game ------ Seed MasterAdvancedCycler Manual? 0 Play Time 00:22:43 Cumulative 0.6 hours Start 2021.05.30 @ 14:39:05 End 2021.05.30 @ 14:59:52 Sessions 1 Manual Loads 0 Difficulty Rogue Special Mode None Game No. 0 Rogue 0 Adventurer 0 Explorer 0 Win Type - Total 0 Types 0/0/0/0/0/0/0/0/0 Lore% 0 Gallery% 1 Achievement% 6 Wizard Run 0 Options --------- ASCII 0 Keyboard 1 Movement Numpad Keybinds 0 Fullscreen 1 Font 18/SmallcapsGlow Map View 76x50 Tactical HUD 0 Map Filters NONE Filters NONE Steam 1 RUN: 3ea51b38-9d0c-441f-a728-f68d9c76aa65